{"text_format":"1","workbook":"xlsx","n_sheets":3,"sheets":["Straightedge Record","Revision History","Lists"],"not_rendered":{"charts":0,"images":1,"macros":1,"external_links":0,"defined_names":25,"comments":0,"pivot_tables":0},"unopened":[],"bounds":{"document_bytes":16777216,"sheet_cells":100000,"rows_first":2000,"rows_last":500,"rows_between":2000,"halvings":0,"cell_chars":16384,"cell_head_chars":4096},"cells_cut":0,"cells_raw":0,"read":"whole","date_system":"1900"}

{"sheet":"Straightedge Record","index":0,"n_rows":59,"n_cols":7,"rows_kept":59,"cut":false,"hidden":false,"merged":[[33,1,33,2],[34,1,34,2],[32,1,32,3],[58,2,58,4],[58,0,58,1],[56,0,56,1],[54,0,54,1],[52,0,52,1],[54,2,54,4],[56,2,56,4],[52,2,52,4],[50,0,50,1],[50,2,50,4],[48,2,48,4],[44,0,44,4],[48,0,48,1],[46,0,46,1],[13,0,13,1],[11,0,11,1],[9,0,9,1],[23,2,23,4],[46,2,46,4],[23,0,23,1],[21,0,21,1],[19,0,19,1],[17,0,17,1],[9,2,9,4],[19,2,19,4],[15,2,15,4],[15,0,15,1],[21,2,21,4],[13,2,13,4],[11,2,11,4],[17,2,17,4],[7,0,7,1],[5,0,5,1],[3,0,3,1],[7,2,7,4],[2,0,2,4],[0,0,0,4],[1,0,1,4],[3,2,3,4],[5,2,5,4]]}
["Texas Department of Transportation"]
["Straightedge Verification Record"]
[{"$f":"IF(OR(ISBLANK(Serial_Number),ISBLANK(Model_Number),ISBLANK(Description),ISBLANK(Manufacturer_Name),ISBLANK(Lab_Unit),ISBLANK(Calibration_Method),ISBLANK(Completed_Date),ISBLANK(Action_Recommended),ISBLANK(Overall_Status),ISBLANK(Remarks),ISBLANK(Authority),ISBLANK(Performed_By),ISBLANK(Reviewed_By),ISBLANK(Reviewed_Date),AND(ISBLANK(NonTxDOT_Other),Authority=\"Non-TxDOT/Other\"),AND(ISBLANK(District_Lab_Area_Office),Authority=\"District Lab/Area Office\"),AND(ISBLANK(MTD_Section),Authority=\"Materials and Tests Division\")),\"***ALL BLANK FIELDS MUST BE ADDRESSED.***\",\"\")","v":"***ALL BLANK FIELDS MUST BE ADDRESSED.***"},null,null,null,null,null,{"$f":"IF(A3=\"\",\"\",\"Instructions\")","v":"Instructions"}]
["Serial Number:",null,null,null,null,null,{"$f":"IF(ISBLANK(Serial_Number),\"Enter Serial Number exactly as it appears in APCM. SN must correspond to the physical piece of equipment.\",\"\")","v":"Enter Serial Number exactly as it appears in APCM. SN must correspond to the physical piece of equipment."}]
[]
["Model Number:",null,null,null,null,null,{"$f":"IF(ISBLANK(Model_Number),\"Enter Model Number exactly as it appears in APCM.\",\"\")","v":"Enter Model Number exactly as it appears in APCM."}]
[]
["Description:",null,null,null,null,null,{"$f":"IF(ISBLANK(Description),\"Enter Description exactly as it appears in APCM.\",\"\")","v":"Enter Description exactly as it appears in APCM."}]
[]
["Manufacturer Name:",null,null,null,null,null,{"$f":"IF(ISBLANK(Manufacturer_Name),\"Enter Manufacturer exactly as it appears in APCM. If no manufacturer exists, enter 'Not Available'.\",\"\")","v":"Enter Manufacturer exactly as it appears in APCM. If no manufacturer exists, enter 'Not Available'."}]
[]
["Lab Unit:",null,null,null,null,null,{"$f":"IF(ISBLANK(Lab_Unit),\"Enter the Lab Unit exactly as it appears in APCM.\",\"\")","v":"Enter the Lab Unit exactly as it appears in APCM."}]
[]
["Calibration Method:",null,"Tex-198-E",null,null,null,{"$f":"IF(ISBLANK(Calibration_Method),\"Select the calibration/verification/standardization procedure used.\",\"\")","v":""}]
[]
["Completed Date:",null,null,null,null,null,{"$f":"IF(ISBLANK(Completed_Date),\"Enter the actual date the calibration/verification/standardization was performed.\",\"\")","v":"Enter the actual date the calibration/verification/standardization was performed."}]
[]
["Calibration Interval (months):",null,12]
[]
["Next Due Date:",null,{"$f":"IF(Overall_Status=\"FAIL\",\"N/A\",IF(C16=\"\",\"\",(DATE(YEAR(C16),MONTH(C16)+C18,DAY(C16)))))","v":""},null,null,null,{"$f":"IF(Next_Due_Date=\"\",\"This field will automatically populate when 'Completed Date' has been entered.\",\"\")","v":"This field will automatically populate when 'Completed Date' has been entered."}]
[]
["Overall Status:",null,null,null,null,null,{"$f":"IF(ISBLANK(Overall_Status),\"Select the appropriate status from the drop-down list. If equipment fails, the equipment record must be made inactive in APCM.\",\"\")","v":"Select the appropriate status from the drop-down list. If equipment fails, the equipment record must be made inactive in APCM."}]
[]
["Action Recommended:",null,null,null,null,null,{"$f":"IF(ISBLANK(Action_Recommended),\"Ensure that 'Overall Status' has been selected, then select the appropriate action from the drop-down list.\",\"\")","v":"Ensure that 'Overall Status' has been selected, then select the appropriate action from the drop-down list."}]
[]
["Detailed Results:"]
[]
[null,"Dimension Verification:"]
[null,"Parameters","Requirement","Pass/Fail?"]
[null,"Planeness, in.","±0.005"]
[null,"Length, in.","≥10"]
[]
[null,"Edge Verification:"]
[null,"Thickness greater than 1/8 of an inch?"]
[null,"Beveled Edge?"]
[]
[null,"Standard/Reference Equipment:"]
[null,"Equipment","Equipment ID","Equipment Expiration"]
[null,"Feeler Gauge"]
[null,"Glass Plate"]
[null,"Ruler"]
[]
[]
["Remarks:"]
[null,null,null,null,null,null,{"$f":"IF(ISBLANK(Remarks),\"Enter any comments regarding the equipment calibration/verification/standardization. \nComments must be entered for Action Recommended of 'Other' and/or Overall Status of 'Fail'. \nIf no comments are needed, enter 'None'.\",\"\")","v":"Enter any comments regarding the equipment calibration/verification/standardization. \nComments must be entered for Action Recommended of 'Other' and/or Overall Status of 'Fail'. \nIf no comments are needed, enter 'None'."}]
[]
["Authority:",null,null,null,null,null,{"$f":"IF(ISBLANK(Authority),\"Select the appropriate calibrating authority from the drop-down list.\",\"\")","v":"Select the appropriate calibrating authority from the drop-down list."}]
[]
["MTD Section:",null,null,null,null,null,{"$f":"IF(ISBLANK(MTD_Section),\"Enter the MTD Section that performed the calibration/verification/standardization.\",\"\")","v":"Enter the MTD Section that performed the calibration/verification/standardization."}]
[]
["District Lab/Area Office:",null,null,null,null,null,{"$f":"IF(ISBLANK(District_Lab_Area_Office),\"Enter the name of the district lab or area office that performed the calibration/verification/standardization.\",\"\")","v":"Enter the name of the district lab or area office that performed the calibration/verification/standardization."}]
[]
["Non-TxDOT/Other Firm:",null,null,null,null,null,{"$f":"IF(ISBLANK(C53),\"Enter the name of the third-party entity that performed the calibration/verification/standardization.\",\"\")","v":"Enter the name of the third-party entity that performed the calibration/verification/standardization."}]
[]
["Performed By:",null,null,null,null,null,{"$f":"IF(ISBLANK(Performed_By),\"Enter the name of the individual who performed the calibration/verification/standardization.\",\"\")","v":"Enter the name of the individual who performed the calibration/verification/standardization."}]
[]
["Reviewed By:",null,null,null,null,null,{"$f":"IF(ISBLANK(Reviewed_By),\"Enter the name of the individual who reviewed the record for completeness and accuracy.\",\"\")","v":"Enter the name of the individual who reviewed the record for completeness and accuracy."}]
[]
["Reviewed Date:",null,null,null,null,null,{"$f":"IF(ISBLANK(Reviewed_Date),\"Enter the actual date the record was reviewed.\",IF(Reviewed_Date<Completed_Date,\"Reviewed Date must be after Completed Date.\",\"\"))","v":"Enter the actual date the record was reviewed."}]

{"sheet":"Revision History","index":1,"n_rows":2,"n_cols":3,"rows_kept":2,"cut":false,"hidden":false,"merged":[]}
["Revision Date","Revision Description","Revised By"]
["2023-02-02","Updated to new template format.","A. Melton"]

{"sheet":"Lists","index":2,"n_rows":64,"n_cols":8,"rows_kept":64,"cut":false,"hidden":true,"merged":[]}
["Status","Pass","Fail","Authority","MTD Sections","Calibration_Method",null,"Date Range"]
["Pass","None","Repair","Materials and Tests Division","Rigid Pavements","Tex-198-E",null,"2000-01-01"]
["Fail","Repair","Replace","District Lab/Area Office","Flexible Pavements","Tex-237-F",null,"2100-01-01"]
[null,"Replace","Other (See Remarks)","Non-TxDOT/Other","Soils & Aggregates","Tex-498-A"]
[null,"Other (See Remarks)",null,null,"Coatings, Calibration, & Traffic Materials","Tex-900-K"]
[null,null,null,null,null,"Tex-901-K"]
[null,null,null,null,null,"Tex-902-K"]
[null,null,null,null,null,"Tex-903-K"]
[null,null,null,null,null,"Tex-905-K"]
[null,null,null,null,null,"Tex-907-K"]
[null,null,null,null,null,"Tex-909-K"]
[null,null,null,null,null,"Tex-911-K"]
[null,null,null,null,null,"Tex-913-K"]
[null,null,null,null,null,"Tex-914-K"]
[null,null,null,null,null,"Tex-916-K"]
[null,null,null,null,null,"Tex-920-K"]
[null,null,null,null,null,"Tex-921-K"]
[null,null,null,null,null,"Tex-922-K"]
[null,null,null,null,null,"Tex-923-K"]
[null,null,null,null,null,"Tex-924-K"]
[null,null,null,null,null,"Tex-925-K"]
[null,null,null,null,null,"Tex-926-K"]
[null,null,null,null,null,"Tex-927-K"]
[null,null,null,null,null,"Tex-930-K"]
[null,null,null,null,null,"AASHTO R28"]
[null,null,null,null,null,"AASHTO T202"]
[null,null,null,null,null,"AASHTO T228"]
[null,null,null,null,null,"AASHTO T240"]
[null,null,null,null,null,"AASHTO T313"]
[null,null,null,null,null,"AASHTO T315"]
[null,null,null,null,null,"AASHTO T316"]
[null,null,null,null,null,"AASHTO T48"]
[null,null,null,null,null,"AASHTO T49"]
[null,null,null,null,null,"AASHTO T50"]
[null,null,null,null,null,"AASHTO T51"]
[null,null,null,null,null,"AASHTO T53"]
[null,null,null,null,null,"AASHTO T59"]
[null,null,null,null,null,"ASME B40"]
[null,null,null,null,null,"ASME B89"]
[null,null,null,null,null,"ASTM C109"]
[null,null,null,null,null,"ASTM C1231"]
[null,null,null,null,null,"ASTM C143"]
[null,null,null,null,null,"ASTM C151"]
[null,null,null,null,null,"ASTM C1702"]
[null,null,null,null,null,"ASTM C173"]
[null,null,null,null,null,"ASTM C174"]
[null,null,null,null,null,"ASTM C192"]
[null,null,null,null,null,"ASTM C204"]
[null,null,null,null,null,"ASTM C231"]
[null,null,null,null,null,"ASTM C430"]
[null,null,null,null,null,"ASTM C511"]
[null,null,null,null,null,"ASTM C604"]
[null,null,null,null,null,"ASTM C617"]
[null,null,null,null,null,"ASTM C78"]
[null,null,null,null,null,"ASTM D4237"]
[null,null,null,null,null,"ASTM C6084"]
[null,null,null,null,null,"ASTM E10"]
[null,null,null,null,null,"ASTM E18"]
[null,null,null,null,null,"ASTM E2309"]
[null,null,null,null,null,"ASTM E4"]
[null,null,null,null,null,"ASTM E83"]
[null,null,null,null,null,"EXT - External Calibration"]
[null,null,null,null,null,"NA - Not Applicable"]
[null,null,null,null,null,"SS - Supplier's Standard"]